fUSD/lending_fUSD_20260116
["ID","MTS","AMOUNT","RATE_DAILY","PERIOD"]
[402144966,1768553578411,-534.73601888,0.00035753,120]
[402144967,1768553578420,-164.27198619,0.00035753,120]
[402144968,1768553578429,-500.0,0.0003578,120]
[402144969,1768553578438,-500.0,0.0003578,120]
[402144970,1768553578447,-160.0,0.00035797,11]
[402144971,1768553578456,-947.89505725,0.000358,30]
[402144972,1768553578465,-150.0,0.000358,13]
[402144973,1768553578474,-1500.0,0.000358,19]
[402144974,1768553578483,-163.0,0.00035803,11]
[402144975,1768553578492,-834.0,0.00035861,11]
[402144976,1768553578502,-500.0,0.0003587,2]
[402144977,1768553578511,-1000.0,0.0003587,2]
[402144978,1768553578522,-27050.72768763,0.0003589,10]
[402144979,1768553578531,-500.0,0.0003589,10]
[402144980,1768553578540,-500.0,0.0003589,10]
[402144981,1768553578549,-500.0,0.0003589,10]
[402144982,1768553578559,-500.0,0.0003589,10]
[402144983,1768553578567,-1031.15,0.0003589,10]
[402144984,1768553578576,-500.0,0.0003589,10]
[402144985,1768553578585,-340.0,0.0003589,10]
[402144986,1768553578595,-700.0,0.0003589,14]
[402144987,1768553578604,-500.0,0.0003589,14]
[402144988,1768553578613,-501.8858786,0.0003589,10]
[402144989,1768553578621,-153.269825,0.0003589,10]
[402144990,1768553578630,-199.543983,0.0003589,10]
[402144991,1768553578640,-500.0,0.0003589,10]
[402144992,1768553578649,-163.978129,0.0003589,10]
[402144993,1768553578658,-150.0,0.0003589,2]
[402144994,1768553578667,-3820.54808402,0.0003589,2]
[402144995,1768553578676,-150.0,0.0003589,2]
[402144996,1768553578685,-15678.12609047,0.0003589,2]
[402144997,1768553578695,-150.0,0.0003589,2]
[402144998,1768553578704,-4501.879777,0.0003589,2]
[402144999,1768553578713,-500.0,0.0003589,10]
[402145000,1768553578722,-500.0,0.0003589,10]
[402145001,1768553578872,-500.0,0.0003589,10]
[402145002,1768553578882,-500.0,0.0003589,10]
[402145003,1768553578892,-500.0,0.0003589,10]
[402145004,1768553578901,-500.0,0.0003589,10]
[402145005,1768553578910,-808.21,0.0003589,10]
[402145006,1768553578919,-350.92088585,0.0003589,10]
[402145007,1768553578929,-500.0,0.0003589,7]
[402145008,1768553578938,-500.0,0.0003589,10]
[402145009,1768553578947,-500.0,0.0003589,10]
[402145010,1768553578956,-500.0,0.0003589,10]
[402145011,1768553578965,-500.0,0.0003589,10]
[402145012,1768553578974,-813.73,0.0003589,10]
[402145013,1768553578983,-973.06,0.0003589,10]
[402145014,1768553578993,-504.36,0.0003589,10]
[402145015,1768553579002,-500.0,0.0003589,10]
[402145016,1768553579011,-500.0,0.0003589,10]
[402145017,1768553579020,-674.01,0.0003589,10]
[402145018,1768553579029,-500.0,0.0003589,10]
[402145019,1768553579039,-500.0,0.0003589,10]
[402145020,1768553579048,-500.0,0.0003589,10]
[402145021,1768553579057,-500.0,0.0003589,10]
[402145022,1768553579067,-1037.35,0.0003589,10]
[402145023,1768553579077,-500.0,0.0003589,10]
[402145024,1768553579087,-345.28036249,0.0003589,10]
[402145025,1768553579097,-500.0,0.0003589,10]
[402145026,1768553579106,-500.0,0.0003589,10]
[402145027,1768553579116,-525.62,0.0003589,10]
[402145028,1768553579125,-1211.73,0.0003589,10]
[402145029,1768553579133,-505.64411801,0.0003589,10]
[402145030,1768553579143,-500.0,0.0003589,10]
[402145031,1768553579151,-500.0,0.0003589,10]
[402145032,1768553579160,-502.20675029,0.0003589,10]
[402145033,1768553579168,-654.54,0.0003589,10]
[402145034,1768553579178,-902.4,0.0003589,10]
[402145035,1768553579187,-500.0,0.0003589,10]
[402145036,1768553579195,-503.76332695,0.0003589,10]
[402145037,1768553579205,-350.23496545,0.0003589,10]
[402145038,1768553579214,-915.0,0.0003589,10]
[402145039,1768553579224,-500.0,0.0003589,10]
[402145040,1768553579234,-548.97,0.0003589,10]
[402145041,1768553579243,-500.0,0.0003589,10]
[402145042,1768553579252,-500.0,0.0003589,10]
[402145043,1768553579261,-500.0,0.0003589,10]
[402145044,1768553579270,-500.0,0.0003589,10]
[402145045,1768553579280,-507.08587068,0.0003589,10]
[402145046,1768553579289,-500.0,0.0003589,10]
[402145047,1768553579298,-786.94,0.0003589,10]
[402145048,1768553579309,-500.0,0.0003589,10]
[402145049,1768553579318,-504.18143646,0.0003589,10]
[402145050,1768553579327,-500.0,0.0003589,10]
[402145051,1768553579336,-1003.52,0.0003589,10]
[402145052,1768553579346,-500.0,0.0003589,10]
[402145053,1768553579355,-500.0,0.0003589,10]
[402145054,1768553579363,-500.0,0.0003589,10]
[402145055,1768553579372,-500.0,0.0003589,10]
[402145056,1768553579381,-500.0,0.0003589,10]
[402145057,1768553579390,-508.14311852,0.0003589,10]
[402145058,1768553579399,-503.50058093,0.0003589,10]
[402145059,1768553579408,-500.0,0.0003589,10]
[402145060,1768553579417,-500.0,0.0003589,10]
[402145061,1768553579426,-500.0,0.0003589,10]
[402145062,1768553579434,-500.0,0.0003589,10]
[402145063,1768553579443,-500.0,0.0003589,10]
[402145064,1768553579453,-500.0,0.0003589,10]
[402145065,1768553579462,-500.0,0.0003589,10]
[402145066,1768553579471,-500.0,0.0003589,10]
[402145067,1768553579480,-500.0,0.0003589,10]
[402145068,1768553579489,-500.0,0.0003589,10]
[402145069,1768553579497,-501.84327556,0.0003589,10]
[402145070,1768553579506,-837.95,0.0003589,10]
[402145071,1768553579516,-500.0,0.0003589,10]
[402145072,1768553579528,-551.36,0.0003589,10]
[402145073,1768553579537,-548.17,0.0003589,10]
[402145074,1768553579546,-500.0,0.0003589,10]
[402145075,1768553579554,-500.0,0.0003589,10]
[402145076,1768553579563,-500.0,0.0003589,10]
[402145077,1768553579573,-500.0,0.0003589,10]
[402145078,1768553579582,-500.0,0.0003589,10]
[402145079,1768553579591,-500.0,0.0003589,10]
[402145080,1768553579603,-500.0,0.0003589,10]
[402145081,1768553579612,-500.0,0.0003589,10]
[402145082,1768553579621,-500.0,0.0003589,10]
[402145083,1768553579629,-1196.74,0.0003589,10]
[402145084,1768553579638,-500.0,0.0003589,10]
[402145085,1768553579647,-587.74,0.0003589,10]
[402145086,1768553579655,-500.0,0.0003589,10]
[402145087,1768553579664,-500.0,0.0003589,10]
[402145088,1768553579673,-500.0,0.0003589,10]
[402145089,1768553579682,-1100.8,0.0003589,10]
[402145090,1768553579691,-500.0,0.0003589,10]
[402145091,1768553579701,-1067.27,0.0003589,10]
[402145092,1768553579709,-500.0,0.0003589,10]
[402145093,1768553579718,-503.59317104,0.0003589,10]
[402145094,1768553579728,-500.0,0.0003589,10]
[402145095,1768553579737,-500.0,0.0003589,10]
[402145096,1768553579746,-500.0,0.0003589,10]
[402145097,1768553579755,-500.0,0.0003589,10]
[402145098,1768553579764,-506.88309176,0.0003589,10]
[402145099,1768553579774,-504.62313608,0.0003589,10]
[402145100,1768553579783,-500.0,0.0003589,10]
[402145101,1768553579792,-826.56,0.0003589,10]
[402145102,1768553579800,-500.0,0.0003589,10]
[402145103,1768553579809,-500.0,0.0003589,10]
[402145104,1768553579819,-500.0,0.0003589,10]
[402145105,1768553579827,-875.73,0.0003589,10]
[402145106,1768553579837,-500.95423854,0.0003589,10]
[402145107,1768553579846,-866.61,0.0003589,10]
[402145108,1768553579855,-542.86,0.0003589,10]
[402145109,1768553579864,-500.0,0.0003589,10]
[402145110,1768553579873,-500.0,0.0003589,10]
[402145111,1768553579883,-500.0,0.0003589,10]
[402145112,1768553579892,-513.96,0.0003589,10]
[402145113,1768553579901,-500.0,0.0003589,10]
[402145114,1768553579911,-500.0,0.0003589,10]
[402145115,1768553579920,-500.0,0.0003589,10]
[402145116,1768553579929,-500.0,0.0003589,10]
[402145117,1768553579938,-500.0,0.0003589,10]
[402145118,1768553579947,-500.0,0.0003589,10]
[402145119,1768553579956,-853.02,0.0003589,10]
[402145120,1768553579965,-500.0,0.0003589,10]
[402145121,1768553579975,-500.0,0.0003589,10]
[402145122,1768553579985,-500.0,0.0003589,10]
[402145123,1768553579994,-501.95354927,0.0003589,10]
[402145124,1768553580003,-625.29,0.0003589,10]
[402145125,1768553580012,-568.61,0.0003589,10]
[402145126,1768553580021,-500.0,0.0003589,10]
[402145127,1768553580031,-500.0,0.0003589,10]
[402145128,1768553580040,-503.05582236,0.0003589,10]
[402145129,1768553580049,-500.0,0.0003589,10]
[402145130,1768553580059,-444.41058693,0.0003589,10]
[402145131,1768553580070,-500.0,0.0003589,10]
[402145132,1768553580079,-500.0,0.0003589,10]
[402145133,1768553580088,-500.0,0.0003589,10]
[402145134,1768553580097,-500.94030325,0.0003589,10]
[402145135,1768553580107,-173.50876678,0.0003589,10]
[402145136,1768553580116,-500.0,0.0003589,10]
[402145137,1768553580126,-500.0,0.0003589,10]
[402145138,1768553580135,-500.0,0.0003589,10]
[402145139,1768553580145,-500.0,0.0003589,10]
[402145140,1768553580154,-500.0,0.0003589,10]
[402145141,1768553580165,-500.0,0.0003589,10]
[402145142,1768553580174,-500.0,0.0003589,10]
[402145143,1768553580183,-500.0,0.0003589,10]
[402145144,1768553580193,-500.0,0.0003589,10]
[402145145,1768553580202,-500.0,0.0003589,10]
[402145146,1768553580211,-503.47,0.0003589,10]
[402145147,1768553580221,-500.81501916,0.0003589,10]
[402145148,1768553580230,-500.0,0.0003589,10]
[402145149,1768553580240,-500.0,0.0003589,10]
[402145150,1768553580249,-500.0,0.0003589,10]
[402145151,1768553580258,-500.0,0.0003589,10]
[402145152,1768553580267,-500.0,0.0003589,10]
[402145153,1768553580277,-500.0,0.0003589,10]
[402145154,1768553580287,-505.16930135,0.0003589,10]
[402145155,1768553580296,-500.0,0.0003589,10]
[402145156,1768553580305,-504.63974843,0.0003589,10]
[402145157,1768553580314,-500.0,0.0003589,10]
[402145158,1768553580324,-500.0,0.0003589,10]
[402145159,1768553580333,-500.0,0.0003589,10]
[402145160,1768553580343,-500.0,0.0003589,10]
[402145161,1768553580352,-500.0,0.0003589,10]
[402145162,1768553580361,-1479.39,0.0003589,10]
[402145163,1768553580371,-668.37,0.0003589,10]
[402145164,1768553580380,-500.0,0.0003589,10]
[402145165,1768553580389,-500.0,0.0003589,10]
[402145166,1768553580399,-500.0,0.0003589,10]
[402145167,1768553580408,-500.0,0.0003589,10]
[402145168,1768553580417,-500.0,0.0003589,10]
[402145169,1768553580427,-500.0,0.0003589,10]
[402145170,1768553580436,-554.51,0.0003589,10]
[402145171,1768553580445,-500.0,0.0003589,10]
[402145172,1768553580455,-505.41790693,0.0003589,10]
[402145173,1768553580464,-823.81,0.0003589,10]
[402145174,1768553580473,-500.0,0.0003589,10]
[402145175,1768553580482,-504.89548708,0.0003589,10]
[402145176,1768553580492,-500.0,0.0003589,10]
[402145177,1768553580501,-522.66,0.0003589,10]
[402145178,1768553580510,-500.0,0.0003589,10]
[402145179,1768553580522,-632.8,0.0003589,10]
[402145180,1768553580536,-760.77,0.0003589,10]
[402145181,1768553580545,-500.0,0.0003589,10]
[402145182,1768553580555,-530.27569193,0.0003589,10]
[402145183,1768553580565,-500.0,0.0003589,10]
[402145184,1768553580574,-271.64530523,0.0003589,10]
[402145185,1768553580584,-500.0,0.0003589,10]
[402145186,1768553580595,-540.98,0.0003589,10]
[402145187,1768553580604,-500.0,0.0003589,10]
[402145188,1768553580613,-500.0,0.0003589,10]
[402145189,1768553580622,-524.63957855,0.0003589,10]
[402145190,1768553580632,-500.0,0.0003589,10]
[402145191,1768553580641,-500.0,0.0003589,10]
[402145192,1768553580650,-500.0,0.0003589,10]
[402145193,1768553580660,-506.08580874,0.0003589,10]
[402145194,1768553580669,-500.0,0.0003589,10]
[402145195,1768553580678,-500.0,0.0003589,10]
[402145196,1768553580688,-500.0,0.0003589,10]
[402145197,1768553580699,-428.83572003,0.0003589,10]
[402145198,1768553580710,-500.0,0.0003589,10]
[402145199,1768553580719,-500.0,0.0003589,10]
[402145200,1768553580728,-500.0,0.0003589,10]
[402145201,1768553580739,-745.1,0.0003589,10]
[402145202,1768553580748,-513.95,0.0003589,10]
[402145203,1768553580757,-500.0,0.0003589,10]
[402145204,1768553580766,-543.44,0.0003589,10]
[402145205,1768553580775,-500.0,0.0003589,10]
[402145206,1768553580784,-500.0,0.0003589,10]
[402145207,1768553580793,-766.12,0.0003589,10]
[402145208,1768553580802,-500.0,0.0003589,10]
[402145209,1768553580811,-500.0,0.0003589,10]
[402145210,1768553580820,-500.0,0.0003589,5]
[402145211,1768553580829,-500.0,0.0003589,10]
[402145212,1768553580839,-500.0,0.0003589,10]
[402145213,1768553580848,-500.0,0.0003589,10]
[402145214,1768553580857,-500.0,0.0003589,10]
[402145215,1768553580867,-602.84,0.0003589,10]
[402145216,1768553580876,-506.2572072,0.0003589,10]
[402145217,1768553580885,-500.0,0.0003589,10]
[402145218,1768553580894,-681.64,0.0003589,10]
[402145219,1768553580903,-500.0,0.0003589,10]
[402145220,1768553580913,-946.6,0.0003589,10]
[402145221,1768553580922,-982.01,0.0003589,10]
[402145222,1768553580931,-500.0,0.0003589,10]
[402145223,1768553580940,-500.0,0.0003589,10]
[402145224,1768553580949,-500.0,0.0003589,10]
[402145225,1768553580958,-500.0,0.0003589,10]
[402145226,1768553580967,-500.0,0.0003589,10]
[402145227,1768553580976,-1431.59,0.0003589,10]
[402145228,1768553580984,-500.0,0.0003589,10]
[402145229,1768553580994,-500.0,0.0003589,10]
[402145230,1768553581005,-500.0,0.0003589,10]
[402145231,1768553581015,-502.20739747,0.0003589,10]
[402145232,1768553581024,-500.0,0.0003589,10]
[402145233,1768553581034,-582.81,0.0003589,10]
[402145234,1768553581043,-500.0,0.0003589,10]
[402145235,1768553581053,-1103.68,0.0003589,5]
[402145236,1768553581064,-500.0,0.0003589,10]
[402145237,1768553581074,-500.0,0.0003589,10]
[402145238,1768553581084,-500.0,0.0003589,10]
[402145239,1768553581094,-500.0,0.0003589,10]
[402145240,1768553581103,-500.0,0.0003589,10]
[402145241,1768553581112,-500.0,0.0003589,10]
[402145242,1768553581122,-500.0,0.0003589,10]
[402145243,1768553581131,-703.99,0.0003589,10]
[402145244,1768553581140,-872.15,0.0003589,10]
[402145245,1768553581149,-548.64,0.0003589,10]
[402145246,1768553581159,-850.54,0.0003589,10]
[402145247,1768553581168,-500.0,0.0003589,10]
[402145248,1768553581176,-1034.71,0.0003589,10]
[402145249,1768553581186,-500.0,0.0003589,10]
[402145250,1768553581195,-508.36097285,0.0003589,10]
[402145251,1768553581204,-500.0,0.0003589,10]
[402145252,1768553581213,-505.01054415,0.0003589,10]
[402145253,1768553581222,-500.0,0.0003589,10]
[402145254,1768553581231,-500.0,0.0003589,10]
[402145255,1768553581240,-500.0,0.0003589,10]
[402145256,1768553581249,-500.0,0.0003589,10]
[402145257,1768553581258,-712.34,0.0003589,10]
[402145258,1768553581267,-500.0,0.0003589,10]
[402145259,1768553581276,-500.0,0.0003589,10]
[402145260,1768553581285,-500.0,0.0003589,10]
[402145261,1768553581295,-1048.59,0.0003589,10]
[402145262,1768553581303,-500.0,0.0003589,10]
[402145263,1768553581313,-500.0,0.0003589,10]
[402145264,1768553581322,-500.0,0.0003589,10]
[402145265,1768553581331,-500.0,0.0003589,10]
[402145266,1768553581340,-500.0,0.0003589,10]
[402145267,1768553581349,-500.0,0.0003589,10]
[402145268,1768553581358,-797.78,0.0003589,10]
[402145269,1768553581369,-864.57,0.0003589,10]
[402145270,1768553581378,-500.0,0.0003589,10]
[402145271,1768553581387,-500.0,0.0003589,10]
[402145272,1768553581396,-500.0,0.0003589,10]
[402145273,1768553581405,-500.0,0.0003589,10]
[402145274,1768553581414,-500.0,0.0003589,10]
[402145275,1768553581423,-500.0,0.0003589,10]
[402145276,1768553581432,-500.0,0.0003589,10]
[402145277,1768553581442,-501.25259381,0.0003589,10]
[402145278,1768553581451,-500.0,0.0003589,10]
[402145279,1768553581461,-505.37569328,0.0003589,10]
[402145280,1768553581470,-669.34,0.0003589,10]
[402145281,1768553581480,-500.0,0.0003589,10]
[402145282,1768553581489,-500.0,0.0003589,10]
[402145283,1768553581499,-1695.98,0.0003589,10]
[402145284,1768553581508,-500.0,0.0003589,10]
[402145285,1768553581518,-591.29027789,0.0003589,10]
[402145286,1768553581533,-500.0,0.0003589,10]
[402145287,1768553581542,-503.25725551,0.0003589,10]
[402145288,1768553581551,-500.0,0.0003589,10]
[402145289,1768553581561,-500.0,0.0003589,10]
[402145290,1768553581572,-500.0,0.0003589,10]
[402145291,1768553581581,-500.0,0.0003589,10]
[402145292,1768553581591,-746.93,0.0003589,10]
[402145293,1768553581603,-500.0,0.0003589,10]
[402145294,1768553581612,-710.63,0.0003589,10]
[402145295,1768553581621,-200.19428238,0.0003589,10]
[402145296,1768553581631,-500.0,0.0003589,10]
[402145297,1768553581640,-500.0,0.0003589,10]
[402145298,1768553581649,-576.53,0.0003589,10]
[402145299,1768553581659,-500.0,0.0003589,10]
[402145300,1768553581668,-551.55,0.0003589,10]
[402145301,1768553581678,-848.31,0.0003589,10]
[402145302,1768553581687,-500.0,0.0003589,10]
[402145303,1768553581697,-500.0,0.0003589,10]
[402145304,1768553581706,-500.0,0.0003589,10]
[402145305,1768553581715,-500.0,0.0003589,10]
[402145306,1768553581724,-606.65995667,0.0003589,10]
[402145307,1768553581734,-640.15,0.0003589,10]
[402145308,1768553581744,-500.0,0.0003589,10]
[402145309,1768553581754,-505.15675114,0.0003589,10]
[402145310,1768553581764,-893.03,0.0003589,10]
[402145311,1768553581775,-829.07,0.0003589,10]
[402145312,1768553581784,-500.0,0.0003589,10]
[402145313,1768553581793,-500.0,0.0003589,10]
[402145314,1768553581803,-500.0,0.0003589,10]
[402145315,1768553581812,-1044.65,0.0003589,2]
[402145316,1768553581823,-580.09,0.0003589,10]
[402145317,1768553581832,-500.0,0.0003589,10]
[402145318,1768553581842,-2280.83,0.0003589,10]
[402145319,1768553581851,-500.0,0.0003589,10]
[402145320,1768553581862,-950.38,0.0003589,10]
[402145321,1768553581872,-925.85,0.0003589,10]
[402145322,1768553581882,-500.0,0.0003589,10]
[402145323,1768553581892,-926.38,0.0003589,10]
[402145324,1768553581902,-1091.37,0.0003589,10]
[402145325,1768553581912,-155.20489465,0.0003589,10]
[402145326,1768553581922,-500.0,0.0003589,10]
[402145327,1768553581931,-934.74,0.0003589,10]
[402145328,1768553581942,-344.52255617,0.0003589,10]
[402145329,1768553581951,-500.0,0.0003589,10]
[402145330,1768553581960,-500.0,0.0003589,10]
[402145331,1768553581970,-500.0,0.0003589,2]
[402145332,1768553581979,-1096.7,0.0003589,10]
[402145333,1768553581989,-500.0,0.0003589,120]
[402145334,1768553581999,-500.0,0.0003589,10]
[402145335,1768553582009,-500.0,0.0003589,10]
[402145336,1768553582019,-500.0,0.0003589,10]
[402145337,1768553582030,-500.0,0.0003589,10]
[402145338,1768553582040,-500.0,0.0003589,10]
[402145339,1768553582050,-615.77,0.0003589,10]
[402145340,1768553582059,-500.0,0.0003589,10]
[402145341,1768553582069,-694.36,0.0003589,10]
[402145342,1768553582079,-816.08,0.0003589,10]
[402145343,1768553582089,-500.0,0.0003589,10]
[402145344,1768553582099,-703.54,0.0003589,10]
[402145345,1768553582110,-500.0,0.0003589,10]
[402145346,1768553582120,-500.0,0.0003589,10]
[402145347,1768553582130,-1150.42,0.0003589,10]
[402145348,1768553582140,-500.0,0.0003589,10]
[402145349,1768553582150,-500.0,0.0003589,10]
[402145350,1768553582159,-510.74264354,0.0003589,10]
[402145351,1768553582171,-658.36,0.0003589,10]
[402145352,1768553582181,-788.58,0.0003589,10]
[402145353,1768553582191,-604.76,0.0003589,10]
[402145354,1768553582200,-1428.02,0.0003589,10]
[402145355,1768553582209,-578.18,0.0003589,10]
[402145356,1768553582220,-500.0,0.0003589,10]
[402145357,1768553582230,-705.82,0.0003589,10]
[402145358,1768553582239,-931.05,0.0003589,10]
[402145359,1768553582248,-500.0,0.0003589,10]
[402145360,1768553582258,-536.13593696,0.0003589,10]
[402145361,1768553582267,-577.64,0.0003589,10]
[402145362,1768553582278,-528.44,0.0003589,10]
[402145363,1768553582288,-500.0,0.0003589,10]
[402145364,1768553582297,-2108.45,0.0003589,10]
[402145365,1768553582306,-500.0,0.0003589,10]
[402145366,1768553582316,-1149.82,0.0003589,10]
[402145367,1768553582325,-500.0,0.0003589,10]
[402145368,1768553582335,-500.0,0.0003589,10]
[402145369,1768553582345,-500.0,0.0003589,10]
[402145370,1768553582355,-683.35,0.0003589,10]
[402145371,1768553582366,-500.0,0.0003589,10]
[402145372,1768553582375,-959.04,0.0003589,10]
[402145373,1768553582384,-500.0,0.0003589,10]
[402145374,1768553582394,-537.48178708,0.0003589,10]
[402145375,1768553582404,-504.35412319,0.0003589,10]
[402145376,1768553582414,-500.0,0.0003589,10]
[402145377,1768553582423,-500.0,0.0003589,10]
[402145378,1768553582434,-700.17,0.0003589,10]
[402145379,1768553582443,-500.0,0.0003589,10]
[402145380,1768553582452,-500.0,0.0003589,10]
[402145381,1768553582461,-500.0,0.0003589,10]
[402145382,1768553582470,-500.0,0.0003589,10]
[402145383,1768553582482,-625.74,0.0003589,10]
[402145384,1768553582492,-500.0,0.0003589,10]
[402145385,1768553582503,-500.0,0.0003589,10]
[402145386,1768553582513,-500.0,0.0003589,10]
[402145387,1768553582527,-754.4,0.0003589,10]
[402145388,1768553582537,-500.0,0.0003589,10]
[402145389,1768553582547,-500.0,0.0003589,10]
[402145390,1768553582557,-737.5,0.0003589,10]
[402145391,1768553582569,-500.0,0.0003589,10]
[402145392,1768553582579,-637.87,0.0003589,10]
[402145393,1768553582589,-625.2,0.0003589,10]
[402145394,1768553582599,-641.84,0.0003589,10]
[402145395,1768553582608,-610.78,0.0003589,10]
[402145396,1768553582619,-544.89,0.0003589,10]
[402145397,1768553582630,-500.0,0.0003589,10]
[402145398,1768553582639,-523.76,0.0003589,10]
[402145399,1768553582649,-501.60506344,0.0003589,10]
[402145400,1768553582659,-500.0,0.0003589,10]
[402145401,1768553582668,-500.0,0.0003589,10]
[402145402,1768553582678,-500.0,0.0003589,10]
[402145403,1768553582689,-500.0,0.0003589,10]
[402145404,1768553582700,-500.0,0.0003589,10]
[402145405,1768553582710,-551.65,0.0003589,10]
[402145406,1768553582720,-1594.08,0.0003589,10]
[402145407,1768553582729,-500.0,0.0003589,10]
[402145408,1768553582740,-527.9033647,0.0003589,10]
[402145409,1768553582750,-500.0,0.0003589,10]
[402145410,1768553582760,-500.0,0.0003589,10]
[402145411,1768553582771,-500.0,0.0003589,10]
[402145412,1768553582781,-500.0,0.0003589,10]
[402145413,1768553582791,-500.0,0.0003589,10]
[402145414,1768553582802,-504.93650957,0.0003589,10]
[402145415,1768553582813,-507.61127337,0.0003589,10]
[402145416,1768553582823,-796.44,0.0003589,10]
[402145417,1768553582834,-504.29656829,0.0003589,10]
[402145418,1768553582845,-500.0,0.0003589,10]
[402145419,1768553582855,-500.0,0.0003589,10]
[402145420,1768553582866,-500.0,0.0003589,10]
[402145421,1768553582876,-500.0,0.0003589,10]
[402145422,1768553582887,-1146.06,0.0003589,10]
[402145423,1768553582897,-567.16,0.0003589,10]
[402145424,1768553582907,-517.33,0.0003589,10]
[402145425,1768553582918,-500.0,0.0003589,10]
[402145426,1768553582928,-500.0,0.0003589,10]
[402145427,1768553582939,-500.0,0.0003589,10]
[402145428,1768553582949,-500.0,0.0003589,10]
[402145429,1768553582960,-500.0,0.0003589,10]
[402145430,1768553582972,-522.75,0.0003589,10]
[402145431,1768553582982,-500.0,0.0003589,10]
[402145432,1768553582993,-500.0,0.0003589,10]
[402145433,1768553583004,-500.0,0.0003589,10]
[402145434,1768553583015,-500.0,0.0003589,10]
[402145435,1768553583025,-500.0,0.0003589,10]
[402145436,1768553583036,-500.0,0.0003589,10]
[402145437,1768553583046,-541.84247973,0.0003589,10]
[402145438,1768553583056,-751.2,0.0003589,10]
[402145439,1768553583068,-500.0,0.0003589,10]
[402145440,1768553583078,-662.29,0.0003589,10]
[402145441,1768553583091,-669.08,0.0003589,10]
[402145442,1768553583103,-500.0,0.0003589,10]
[402145443,1768553583113,-500.0,0.0003589,10]
[402145444,1768553583125,-677.54,0.0003589,10]
[402145445,1768553583136,-1168.86,0.0003589,10]
[402145446,1768553583147,-500.0,0.0003589,10]
[402145447,1768553583158,-1117.06,0.0003589,10]
[402145448,1768553583169,-505.98469534,0.0003589,10]
[402145449,1768553583180,-1648.88,0.0003589,10]
[402145450,1768553583191,-500.0,0.0003589,10]
[402145451,1768553583201,-636.52,0.0003589,10]
[402145452,1768553583212,-636.43,0.0003589,10]
[402145453,1768553583224,-500.0,0.0003589,10]
[402145454,1768553583235,-500.0,0.0003589,10]
[402145455,1768553583246,-575.94,0.0003589,10]
[402145456,1768553583257,-716.91,0.0003589,10]
[402145457,1768553583269,-876.77,0.0003589,10]
[402145458,1768553583279,-500.0,0.0003589,10]
[402145459,1768553583290,-500.0,0.0003589,10]
[402145460,1768553583301,-500.0,0.0003589,10]
[402145461,1768553583311,-500.0,0.0003589,10]
[402145462,1768553583323,-500.0,0.0003589,10]
[402145463,1768553583336,-500.0,0.0003589,10]
[402145464,1768553583347,-990.78,0.0003589,10]
[402145465,1768553583358,-541.15,0.0003589,10]